[Event "*** SCC Grand Prix: Titled Tuesday Blitz"]
[Site "Chess.com"]
[Date "2020.07.21"]
[Round "1"]
[White "antoszu"]
[Black "VladaSviridova"]
[Result "1-0"]
[WhiteElo "2528"]
[BlackElo "2126"]
[TimeControl "180+1"]
[EndTime "10:07:30 PDT"]
[Termination "antoszu won on time"]

1. d4 {[%clk 0:03:00.9]} 1... d5 {[%clk 0:02:59.8]} 2. c4 {[%clk 0:03:00.9]}
2... c6 {[%clk 0:02:59.8]} 3. Nc3 {[%clk 0:03:00.7]} 3... Nf6 {[%clk 0:02:59.6]}
4. Nf3 {[%clk 0:03:00.5]} 4... dxc4 {[%clk 0:02:58.3]} 5. a4 {[%clk 0:03:00.3]}
5... Bf5 {[%clk 0:02:55.6]} 6. Ne5 {[%clk 0:02:59.9]} 6... Nbd7 {[%clk
0:02:55.4]} 7. Nxc4 {[%clk 0:02:59.8]} 7... Qc7 {[%clk 0:02:55.5]} 8. g3 {[%clk
0:02:58.7]} 8... e5 {[%clk 0:02:54.8]} 9. dxe5 {[%clk 0:02:53.1]} 9... Nxe5
{[%clk 0:02:55]} 10. Bf4 {[%clk 0:02:53.6]} 10... Nfd7 {[%clk 0:02:54.7]} 11.
Bg2 {[%clk 0:02:49.4]} 11... f6 {[%clk 0:02:54.1]} 12. O-O {[%clk 0:02:46.7]}
12... g5 {[%clk 0:02:25.9]} 13. Bxe5 {[%clk 0:02:38.2]} 13... Nxe5 {[%clk
0:02:21.7]} 14. Nxe5 {[%clk 0:02:35.4]} 14... fxe5 {[%clk 0:02:01.9]} 15. e4
{[%clk 0:01:56.8]} 15... Bg6 {[%clk 0:01:47.9]} 16. Qg4 {[%clk 0:01:41.7]} 16...
Qe7 {[%clk 0:01:24.2]} 17. Rad1 {[%clk 0:01:28.8]} 17... h5 {[%clk 0:01:20.2]}
18. Qe2 {[%clk 0:01:25.5]} 18... Bg7 {[%clk 0:01:16.8]} 19. a5 {[%clk
0:01:09.2]} 19... O-O {[%clk 0:01:10.5]} 20. a6 {[%clk 0:01:06.8]} 20... b5
{[%clk 0:01:08.1]} 21. Qe3 {[%clk 0:00:49.6]} 21... Rad8 {[%clk 0:01:01.2]} 22.
Bf3 {[%clk 0:00:39.2]} 22... Kh7 {[%clk 0:00:51.6]} 23. Be2 {[%clk 0:00:37]}
23... Rd4 {[%clk 0:00:44]} 24. Rfe1 {[%clk 0:00:18.5]} 24... Rfd8 {[%clk
0:00:42.5]} 25. Bf1 {[%clk 0:00:18]} 25... g4 {[%clk 0:00:33.1]} 26. Qe2 {[%clk
0:00:10.4]} 26... Bh6 {[%clk 0:00:22.6]} 27. Bg2 {[%clk 0:00:10.7]} 27... Rd2
{[%clk 0:00:20.8]} 28. Qf1 {[%clk 0:00:11.1]} 28... Rxb2 {[%clk 0:00:17.3]} 29.
Rxd8 {[%clk 0:00:07.3]} 29... Qxd8 {[%clk 0:00:17.2]} 30. f3 {[%clk 0:00:08]}
30... Qd4+ {[%clk 0:00:16.5]} 31. Kh1 {[%clk 0:00:07.8]} 31... gxf3 {[%clk
0:00:16.3]} 32. Qxf3 {[%clk 0:00:07.9]} 32... Bd2 {[%clk 0:00:14.4]} 33. Rf1
{[%clk 0:00:06.3]} 33... Bxc3 {[%clk 0:00:11.4]} 34. Qf8 {[%clk 0:00:06.5]}
34... Qd7 {[%clk 0:00:04.7]} 35. Bh3 {[%clk 0:00:04.4]} 35... Qg7 {[%clk
0:00:03.9]} 36. Qf3 {[%clk 0:00:02.7]} 36... Rc2 {[%clk 0:00:02]} 37. Bf5 {[%clk
0:00:03.2]} 1-0

[Event "*** SCC Grand Prix: Titled Tuesday Blitz"]
[Site "Chess.com"]
[Date "2020.07.21"]
[Round "1"]
[White "BlackBoarder"]
[Black "KaspMagAlpha"]
[Result "1-0"]
[WhiteElo "2578"]
[BlackElo "2226"]
[TimeControl "180+1"]
[EndTime "10:07:33 PDT"]
[Termination "BlackBoarder won by checkmate"]

1. e4 {[%clk 0:02:47.7]} 1... c5 {[%clk 0:02:59.4]} 2. Nf3 {[%clk 0:02:46.9]}
2... e6 {[%clk 0:02:59.4]} 3. c3 {[%clk 0:02:46.8]} 3... Nf6 {[%clk 0:02:58.6]}
4. e5 {[%clk 0:02:47.1]} 4... Nd5 {[%clk 0:02:58.7]} 5. d4 {[%clk 0:02:45.5]}
5... cxd4 {[%clk 0:02:57.8]} 6. cxd4 {[%clk 0:02:45.8]} 6... d6 {[%clk
0:02:58.1]} 7. Bd3 {[%clk 0:02:42]} 7... Nc6 {[%clk 0:02:57]} 8. a3 {[%clk
0:02:42]} 8... Be7 {[%clk 0:02:55.1]} 9. O-O {[%clk 0:02:39.3]} 9... O-O {[%clk
0:02:54.3]} 10. Qe2 {[%clk 0:02:36.3]} 10... dxe5 {[%clk 0:02:49.6]} 11. dxe5
{[%clk 0:02:35.4]} 11... f5 {[%clk 0:02:46]} 12. exf6 {[%clk 0:02:34.3]} 12...
Nxf6 {[%clk 0:02:44.3]} 13. Nc3 {[%clk 0:02:23.5]} 13... Nd4 {[%clk 0:02:28.9]}
14. Nxd4 {[%clk 0:02:07.9]} 14... Qxd4 {[%clk 0:02:27.3]} 15. Bc4 {[%clk
0:01:56.9]} 15... Qg4 {[%clk 0:02:14.3]} 16. Re1 {[%clk 0:01:26.6]} 16... Bc5
{[%clk 0:01:56.7]} 17. h3 {[%clk 0:00:57.6]} 17... Qxe2 {[%clk 0:01:46.4]} 18.
Rxe2 {[%clk 0:00:57.1]} 18... Re8 {[%clk 0:01:43.9]} 19. Be3 {[%clk 0:00:52.1]}
19... Bd6 {[%clk 0:01:30.8]} 20. Nb5 {[%clk 0:00:44.8]} 20... Bb8 {[%clk
0:01:28.2]} 21. Rd1 {[%clk 0:00:33.7]} 21... a6 {[%clk 0:01:26.9]} 22. Nd6
{[%clk 0:00:33.1]} 22... Bxd6 {[%clk 0:01:23.7]} 23. Rxd6 {[%clk 0:00:33]} 23...
b5 {[%clk 0:01:23.8]} 24. Bb3 {[%clk 0:00:31.2]} 24... Kf7 {[%clk 0:01:10.6]}
25. Rc2 {[%clk 0:00:27.9]} 25... Re7 {[%clk 0:01:05.8]} 26. f3 {[%clk
0:00:15.1]} 26... h6 {[%clk 0:00:54.5]} 27. Bd4 {[%clk 0:00:14]} 27... Ne8
{[%clk 0:00:51.4]} 28. Rb6 {[%clk 0:00:09.9]} 28... Rc7 {[%clk 0:00:40.3]} 29.
Re2 {[%clk 0:00:05.6]} 29... Rc1+ {[%clk 0:00:32.4]} 30. Kh2 {[%clk 0:00:05.5]}
30... Nc7 {[%clk 0:00:31.5]} 31. Be5 {[%clk 0:00:04.9]} 31... Nd5 {[%clk
0:00:27.2]} 32. Rd6 {[%clk 0:00:04.5]} 32... Nc7 {[%clk 0:00:18.8]} 33. Bg3
{[%clk 0:00:03.2]} 33... Ra7 {[%clk 0:00:17.4]} 34. Rd4 {[%clk 0:00:03.4]} 34...
Bd7 {[%clk 0:00:16.5]} 35. Rxd7+ {[%clk 0:00:03.1]} 35... Ke8 {[%clk 0:00:15.7]}
36. Rxg7 {[%clk 0:00:03]} 36... Rb7 {[%clk 0:00:12.7]} 37. Bxe6 {[%clk
0:00:02.8]} 37... Nxe6 {[%clk 0:00:12.6]} 38. Rxb7 {[%clk 0:00:02.8]} 38... Kf8
{[%clk 0:00:13.5]} 39. Rxe6 {[%clk 0:00:02.6]} 39... Rc8 {[%clk 0:00:12.2]} 40.
Rxa6 {[%clk 0:00:02.8]} 40... Kg8 {[%clk 0:00:11.8]} 41. Rxh6 {[%clk 0:00:02.9]}
41... b4 {[%clk 0:00:11.9]} 42. Be5 {[%clk 0:00:03.2]} 42... bxa3 {[%clk
0:00:11.5]} 43. Rh8# {[%clk 0:00:03.5]} 1-0

[Event "*** SCC Grand Prix: Titled Tuesday Blitz"]
[Site "Chess.com"]
[Date "2020.07.21"]
[Round "1"]
[White "GadimbayliA"]
[Black "sotochess"]
[Result "1-0"]
[WhiteElo "2867"]
[BlackElo "2428"]
[TimeControl "180+1"]
[EndTime "10:07:34 PDT"]
[Termination "GadimbayliA won by resignation"]

1. e4 {[%clk 0:03:00.9]} 1... d5 {[%clk 0:02:55.7]} 2. exd5 {[%clk 0:03:00.7]}
2... Qxd5 {[%clk 0:02:52.5]} 3. Nc3 {[%clk 0:03:00]} 3... Qa5 {[%clk 0:02:51.9]}
4. d4 {[%clk 0:02:59.9]} 4... Nf6 {[%clk 0:02:50.5]} 5. Nf3 {[%clk 0:03:00.8]}
5... c6 {[%clk 0:02:50.4]} 6. Bd2 {[%clk 0:03:00.6]} 6... Bg4 {[%clk 0:02:48.4]}
7. Bc4 {[%clk 0:03:00.5]} 7... e6 {[%clk 0:02:47.8]} 8. Qe2 {[%clk 0:02:58.5]}
8... Nbd7 {[%clk 0:02:38.1]} 9. O-O-O {[%clk 0:02:57.8]} 9... O-O-O {[%clk
0:02:35.4]} 10. Nd5 {[%clk 0:02:52.8]} 10... Qa4 {[%clk 0:02:01.3]} 11. Bb3
{[%clk 0:02:52.1]} 11... Bxf3 {[%clk 0:01:44.1]} 12. Qxf3 {[%clk 0:02:47.7]}
12... Qa6 {[%clk 0:01:41.8]} 13. Nc3 {[%clk 0:02:32]} 13... Bb4 {[%clk
0:01:27.9]} 14. Ne4 {[%clk 0:02:21.5]} 14... Bxd2+ {[%clk 0:01:22.4]} 15. Rxd2
{[%clk 0:02:22.4]} 15... Nxe4 {[%clk 0:01:22]} 16. Qxe4 {[%clk 0:02:21.5]} 16...
Nf6 {[%clk 0:01:21.8]} 17. Qf3 {[%clk 0:02:15.1]} 17... Qb6 {[%clk 0:01:20.8]}
18. Rhd1 {[%clk 0:02:12.4]} 18... Rd7 {[%clk 0:01:19.3]} 19. c3 {[%clk
0:02:08.1]} 19... Rhd8 {[%clk 0:01:17.9]} 20. g4 {[%clk 0:02:02.8]} 20... h6
{[%clk 0:01:17.2]} 21. h4 {[%clk 0:02:01.4]} 21... Qc7 {[%clk 0:01:15.7]} 22. c4
{[%clk 0:01:52.8]} 22... c5 {[%clk 0:01:01.4]} 23. g5 {[%clk 0:01:46.4]} 23...
hxg5 {[%clk 0:01:01.1]} 24. hxg5 {[%clk 0:01:47.3]} 24... Nh7 {[%clk 0:01:00.7]}
25. g6 {[%clk 0:01:21.9]} 25... Ng5 {[%clk 0:00:52.5]} 26. Qg4 {[%clk
0:01:18.3]} 26... f6 {[%clk 0:00:48.2]} 27. d5 {[%clk 0:01:18.7]} 27... exd5
{[%clk 0:00:45.9]} 28. Rxd5 {[%clk 0:01:16]} 28... Qc6 {[%clk 0:00:32.9]} 29.
Bc2 {[%clk 0:01:04]} 29... Kc7 {[%clk 0:00:25.4]} 30. Qg3+ {[%clk 0:01:04.2]}
30... Kb6 {[%clk 0:00:22.2]} 31. Qb3+ {[%clk 0:01:03.6]} 31... Kc7 {[%clk
0:00:20.6]} 32. f4 {[%clk 0:00:52.6]} 32... Ne6 {[%clk 0:00:18.5]} 33. Bf5
{[%clk 0:00:52.6]} 33... Nd4 {[%clk 0:00:17.4]} 34. R1xd4 {[%clk 0:00:50.1]}
34... cxd4 {[%clk 0:00:17.3]} 35. Bxd7 {[%clk 0:00:49.9]} 35... Rxd7 {[%clk
0:00:15.6]} 36. Kd2 {[%clk 0:00:43.6]} 36... Rxd5 {[%clk 0:00:15.1]} 37. cxd5
{[%clk 0:00:44.5]} 37... Qc5 {[%clk 0:00:15.7]} 38. f5 {[%clk 0:00:35.6]} 38...
b5 {[%clk 0:00:13.7]} 39. Kd3 {[%clk 0:00:19.4]} 39... Kd6 {[%clk 0:00:12.6]}
40. Ke4 {[%clk 0:00:19.6]} 40... Qc4 {[%clk 0:00:07.9]} 41. Qxc4 {[%clk
0:00:18]} 41... bxc4 {[%clk 0:00:06.3]} 42. Kxd4 {[%clk 0:00:18.9]} 1-0

[Event "*** SCC Grand Prix: Titled Tuesday Blitz"]
[Site "Chess.com"]
[Date "2020.07.21"]
[Round "1"]
[White "Angel_Hranitel_37"]
[Black "swimmerchess"]
[Result "0-1"]
[WhiteElo "2402"]
[BlackElo "2801"]
[TimeControl "180+1"]
[EndTime "10:07:34 PDT"]
[Termination "swimmerchess won by resignation"]

1. d4 {[%clk 0:03:00.9]} 1... Nf6 {[%clk 0:03:00]} 2. Nf3 {[%clk 0:03:01.2]}
2... g6 {[%clk 0:03:00.5]} 3. g3 {[%clk 0:03:01.4]} 3... Bg7 {[%clk 0:03:01.2]}
4. Bg2 {[%clk 0:03:02.3]} 4... O-O {[%clk 0:03:02]} 5. O-O {[%clk 0:03:03.2]}
5... d6 {[%clk 0:03:02.9]} 6. Nc3 {[%clk 0:03:03.6]} 6... Nbd7 {[%clk
0:03:03.6]} 7. a4 {[%clk 0:03:03.6]} 7... e5 {[%clk 0:03:04.5]} 8. dxe5 {[%clk
0:03:03.6]} 8... dxe5 {[%clk 0:03:04.7]} 9. Nd2 {[%clk 0:03:03.9]} 9... c6
{[%clk 0:03:04.4]} 10. Nc4 {[%clk 0:03:04.1]} 10... Qe7 {[%clk 0:03:03.9]} 11.
b3 {[%clk 0:03:03.9]} 11... Rd8 {[%clk 0:03:01.4]} 12. Ba3 {[%clk 0:03:03.8]}
12... Qe6 {[%clk 0:03:01.7]} 13. Qd6 {[%clk 0:02:24.8]} 13... Qxd6 {[%clk
0:02:55.2]} 14. Bxd6 {[%clk 0:02:23.6]} 14... Bf8 {[%clk 0:02:48.3]} 15. Bc7
{[%clk 0:01:37.1]} 15... Re8 {[%clk 0:02:45.3]} 16. Rad1 {[%clk 0:01:37.3]}
16... Bb4 {[%clk 0:02:41]} 17. Na2 {[%clk 0:01:27.9]} 17... Bc5 {[%clk
0:02:39.9]} 18. a5 {[%clk 0:01:16.5]} 18... e4 {[%clk 0:02:34.6]} 19. Nd6 {[%clk
0:01:08.4]} 19... Re6 {[%clk 0:02:26.5]} 20. b4 {[%clk 0:01:04]} 20... Bxd6
{[%clk 0:02:21.6]} 21. Bxd6 {[%clk 0:01:04.1]} 21... Ne5 {[%clk 0:02:19]} 22.
Bc5 {[%clk 0:00:37.7]} 22... Re8 {[%clk 0:02:15.6]} 23. Bd4 {[%clk 0:00:28.1]}
23... Bg4 {[%clk 0:02:13.3]} 24. f3 {[%clk 0:00:24.1]} 24... exf3 {[%clk
0:02:11.3]} 25. exf3 {[%clk 0:00:25]} 25... Bf5 {[%clk 0:02:11]} 26. f4 {[%clk
0:00:21]} 26... Ned7 {[%clk 0:02:09.1]} 27. c4 {[%clk 0:00:17.1]} 27... Be4
{[%clk 0:02:02.6]} 28. Nc3 {[%clk 0:00:16]} 28... Bxg2 {[%clk 0:02:02.1]} 29.
Kxg2 {[%clk 0:00:16.9]} 29... Re6 {[%clk 0:02:00.3]} 30. Rfe1 {[%clk 0:00:15.4]}
30... Rxe1 {[%clk 0:01:39.1]} 31. Rxe1 {[%clk 0:00:16.3]} 31... Kf8 {[%clk
0:01:39.9]} 32. Kf3 {[%clk 0:00:12.6]} 32... b6 {[%clk 0:01:34.5]} 33. Ra1
{[%clk 0:00:10.1]} 33... c5 {[%clk 0:01:30]} 34. Bxf6 {[%clk 0:00:08.1]} 34...
Nxf6 {[%clk 0:01:27.7]} 35. axb6 {[%clk 0:00:06.9]} 35... cxb4 {[%clk
0:01:28.1]} 36. Nb5 {[%clk 0:00:05.2]} 36... a5 {[%clk 0:01:05.6]} 37. b7 {[%clk
0:00:05]} 37... Rb8 {[%clk 0:01:04.4]} 38. Rxa5 {[%clk 0:00:05.6]} 38... Rxb7
{[%clk 0:01:03.6]} 39. Ra4 {[%clk 0:00:04.5]} 39... Nd5 {[%clk 0:01:00.3]} 40.
Nd6 {[%clk 0:00:02.8]} 40... b3 {[%clk 0:00:55.5]} 41. Nxb7 {[%clk 0:00:01.6]}
41... b2 {[%clk 0:00:55.6]} 42. Ra8+ {[%clk 0:00:02.3]} 42... Kg7 {[%clk
0:00:55.6]} 43. cxd5 {[%clk 0:00:02.8]} 43... b1=Q {[%clk 0:00:55.6]} 44. Rb8
{[%clk 0:00:02.7]} 44... Qd3+ {[%clk 0:00:54.7]} 45. Kf2 {[%clk 0:00:02.3]}
45... Qxd5 {[%clk 0:00:55.6]} 46. Rd8 {[%clk 0:00:01.5]} 46... Qxb7 {[%clk
0:00:55.5]} 47. Rd2 {[%clk 0:00:02.4]} 47... Qb6+ {[%clk 0:00:55.3]} 48. Kg2
{[%clk 0:00:02.4]} 48... h5 {[%clk 0:00:55.8]} 49. h4 {[%clk 0:00:02.2]} 49...
Qe3 {[%clk 0:00:54.8]} 50. Rf2 {[%clk 0:00:01.3]} 50... Kf6 {[%clk 0:00:55]} 51.
Rf3 {[%clk 0:00:01.8]} 51... Qe4 {[%clk 0:00:54.7]} 52. Kf2 {[%clk 0:00:02.2]}
52... Kf5 {[%clk 0:00:55.1]} 53. Re3 {[%clk 0:00:02.8]} 53... Qc2+ {[%clk
0:00:55.1]} 54. Kf3 {[%clk 0:00:03.4]} 54... Qd1+ {[%clk 0:00:54.4]} 55. Kf2
{[%clk 0:00:03]} 55... Kg4 {[%clk 0:00:54.2]} 56. Re5 {[%clk 0:00:01.5]} 56...
Qf3+ {[%clk 0:00:54]} 57. Ke1 {[%clk 0:00:02]} 57... Qxg3+ {[%clk 0:00:54.6]}
0-1

[Event "*** SCC Grand Prix: Titled Tuesday Blitz"]
[Site "Chess.com"]
[Date "2020.07.21"]
[Round "1"]
[White "harkerchess"]
[Black "Oglob71"]
[Result "0-1"]
[WhiteElo "2105"]
[BlackElo "2517"]
[TimeControl "180+1"]
[EndTime "10:07:34 PDT"]
[Termination "Oglob71 won by resignation"]

1. d4 {[%clk 0:02:57.6]} 1... Nf6 {[%clk 0:02:55.7]} 2. Bg5 {[%clk 0:02:55.9]}
2... d5 {[%clk 0:02:53.2]} 3. Bxf6 {[%clk 0:02:54.6]} 3... exf6 {[%clk
0:02:53.4]} 4. e3 {[%clk 0:02:55.5]} 4... c6 {[%clk 0:02:53.5]} 5. c4 {[%clk
0:02:55.5]} 5... dxc4 {[%clk 0:02:53]} 6. Bxc4 {[%clk 0:02:56.4]} 6... Bd6
{[%clk 0:02:53.2]} 7. Nc3 {[%clk 0:02:53.7]} 7... O-O {[%clk 0:02:53.6]} 8. Nge2
{[%clk 0:02:51.4]} 8... Nd7 {[%clk 0:02:51.6]} 9. O-O {[%clk 0:02:51.7]} 9...
Nb6 {[%clk 0:02:51.8]} 10. Bb3 {[%clk 0:02:47.6]} 10... Re8 {[%clk 0:02:51.1]}
11. Bc2 {[%clk 0:02:45.8]} 11... Qc7 {[%clk 0:02:44]} 12. h4 {[%clk 0:02:44.3]}
12... Bg4 {[%clk 0:02:41.2]} 13. Qd3 {[%clk 0:02:41.3]} 13... g6 {[%clk
0:02:40.6]} 14. Ne4 {[%clk 0:02:31]} 14... Be7 {[%clk 0:02:36.9]} 15. N2g3
{[%clk 0:02:24.1]} 15... Nd5 {[%clk 0:02:34.7]} 16. h5 {[%clk 0:02:21.9]} 16...
Nb4 {[%clk 0:02:33.6]} 17. Qc3 {[%clk 0:02:08.9]} 17... Nxc2 {[%clk 0:02:31.4]}
18. Qxc2 {[%clk 0:02:09.8]} 18... Rad8 {[%clk 0:02:29.6]} 19. Rac1 {[%clk
0:02:05.1]} 19... f5 {[%clk 0:02:18.3]} 20. Nd2 {[%clk 0:01:45.9]} 20... f4
{[%clk 0:02:17.9]} 21. hxg6 {[%clk 0:01:22.1]} 21... hxg6 {[%clk 0:02:17.5]} 22.
exf4 {[%clk 0:01:20.2]} 22... Qxf4 {[%clk 0:02:13.9]} 23. Nb3 {[%clk 0:01:18.9]}
23... Bd6 {[%clk 0:02:09.7]} 24. Rfe1 {[%clk 0:01:16.8]} 24... Be6 {[%clk
0:01:58.7]} 25. Re4 {[%clk 0:01:10.3]} 25... Qh6 {[%clk 0:01:53.3]} 26. Qc3
{[%clk 0:00:59.3]} 26... Bd7 {[%clk 0:01:51.5]} 27. Rce1 {[%clk 0:00:57.7]}
27... Rxe4 {[%clk 0:01:51.3]} 28. Rxe4 {[%clk 0:00:58.6]} 28... Re8 {[%clk
0:01:51.5]} 29. Rxe8+ {[%clk 0:00:57.9]} 29... Bxe8 {[%clk 0:01:51.8]} 30. Nc5
{[%clk 0:00:52.4]} 30... b6 {[%clk 0:01:43.1]} 31. Nce4 {[%clk 0:00:48.4]} 31...
Be7 {[%clk 0:01:43.5]} 32. Qe3 {[%clk 0:00:43.1]} 32... Qxe3 {[%clk 0:01:40.1]}
33. fxe3 {[%clk 0:00:44]} 33... Bd7 {[%clk 0:01:39.3]} 34. Kf2 {[%clk
0:00:42.4]} 34... f5 {[%clk 0:01:39.5]} 35. Nd2 {[%clk 0:00:40.4]} 35... Be6
{[%clk 0:01:39.9]} 36. b3 {[%clk 0:00:40.1]} 36... c5 {[%clk 0:01:37.5]} 37. Nf3
{[%clk 0:00:36.1]} 37... Bd5 {[%clk 0:01:34.2]} 38. Ne5 {[%clk 0:00:34.6]} 38...
Kg7 {[%clk 0:01:31.7]} 39. dxc5 {[%clk 0:00:31]} 39... Bxc5 {[%clk 0:01:30.1]}
40. Nd3 {[%clk 0:00:25.2]} 40... Bd6 {[%clk 0:01:29.9]} 41. Nf4 {[%clk
0:00:23.4]} 41... Bf7 {[%clk 0:01:29]} 42. Kf3 {[%clk 0:00:21.1]} 42... Kf6
{[%clk 0:01:27.8]} 43. Nge2 {[%clk 0:00:20.3]} 43... g5 {[%clk 0:01:24.4]} 44.
Nd3 {[%clk 0:00:19.6]} 44... Bd5+ {[%clk 0:01:24.4]} 45. Kf2 {[%clk 0:00:19.8]}
45... a5 {[%clk 0:01:22.5]} 46. Nc3 {[%clk 0:00:19.8]} 46... Bc6 {[%clk
0:01:20.8]} 47. a4 {[%clk 0:00:18.9]} 47... Ke6 {[%clk 0:01:17.5]} 48. g4 {[%clk
0:00:17.1]} 48... fxg4 {[%clk 0:01:16.7]} 49. e4 {[%clk 0:00:17.2]} 49... Be5
{[%clk 0:01:10.9]} 50. Nxe5 {[%clk 0:00:15.9]} 50... Kxe5 {[%clk 0:01:11.3]} 51.
Ke3 {[%clk 0:00:16.8]} 51... g3 {[%clk 0:01:10.3]} 52. Kf3 {[%clk 0:00:16.5]}
52... g2 {[%clk 0:01:10.4]} 53. Kxg2 {[%clk 0:00:16.4]} 53... Bxe4+ {[%clk
0:01:11.3]} 54. Kg3 {[%clk 0:00:13.9]} 54... Bf5 {[%clk 0:01:08.7]} 55. Na2
{[%clk 0:00:12.2]} 55... Be6 {[%clk 0:01:07.9]} 56. Nc1 {[%clk 0:00:10.2]} 56...
Kd4 {[%clk 0:01:08.1]} 57. Kf3 {[%clk 0:00:07.7]} 57... Kc3 {[%clk 0:01:08.4]}
58. Kg3 {[%clk 0:00:07]} 58... Bxb3 {[%clk 0:01:04.7]} 59. Kg4 {[%clk
0:00:05.5]} 59... Bc4 {[%clk 0:01:04.4]} 60. Kxg5 {[%clk 0:00:05.7]} 60... Kc2
{[%clk 0:01:05.3]} 61. Kf5 {[%clk 0:00:04.8]} 61... Kxc1 {[%clk 0:01:05.3]} 62.
Ke5 {[%clk 0:00:05.7]} 62... Kb2 {[%clk 0:01:05.6]} 63. Kd6 {[%clk 0:00:06.6]}
63... Kb3 {[%clk 0:01:06.2]} 64. Kc6 {[%clk 0:00:07.5]} 64... Kxa4 {[%clk
0:01:06.2]} 65. Kxb6 {[%clk 0:00:08]} 65... Kb4 {[%clk 0:01:07.1]} 0-1

[Event "*** SCC Grand Prix: Titled Tuesday Blitz"]
[Site "Chess.com"]
[Date "2020.07.21"]
[Round "1"]
[White "Jaka_Brilej"]
[Black "Gareth-Bale11"]
[Result "1/2-1/2"]
[WhiteElo "2358"]
[BlackElo "2702"]
[TimeControl "180+1"]
[EndTime "10:07:38 PDT"]
[Termination "Game drawn by agreement"]

1. e4 {[%clk 0:03:00.9]} 1... c5 {[%clk 0:02:57.5]} 2. Nf3 {[%clk 0:03:00.6]}
2... Nc6 {[%clk 0:02:58.1]} 3. d4 {[%clk 0:02:59.8]} 3... cxd4 {[%clk
0:02:57.9]} 4. Nxd4 {[%clk 0:02:59.2]} 4... Nf6 {[%clk 0:02:56.9]} 5. Nc3 {[%clk
0:02:52.6]} 5... e5 {[%clk 0:02:56.7]} 6. Ndb5 {[%clk 0:02:52.6]} 6... d6 {[%clk
0:02:56.9]} 7. Bg5 {[%clk 0:02:51.8]} 7... a6 {[%clk 0:02:56.8]} 8. Na3 {[%clk
0:02:51.4]} 8... b5 {[%clk 0:02:57.1]} 9. Nd5 {[%clk 0:02:51.2]} 9... Be7 {[%clk
0:02:57.1]} 10. Bxf6 {[%clk 0:02:51.7]} 10... Bxf6 {[%clk 0:02:58]} 11. c3
{[%clk 0:02:52.2]} 11... Bg5 {[%clk 0:02:58.1]} 12. Nc2 {[%clk 0:02:52.3]} 12...
Rb8 {[%clk 0:02:57.3]} 13. a4 {[%clk 0:02:51.7]} 13... bxa4 {[%clk 0:02:55.9]}
14. Ncb4 {[%clk 0:02:51.9]} 14... Nxb4 {[%clk 0:02:54.8]} 15. cxb4 {[%clk
0:02:52.8]} 15... a5 {[%clk 0:02:45.9]} 16. Qxa4+ {[%clk 0:02:25.9]} 16... Bd7
{[%clk 0:02:43.3]} 17. Qxa5 {[%clk 0:02:25.8]} 17... O-O {[%clk 0:02:43.8]} 18.
Qxd8 {[%clk 0:02:18.1]} 18... Rfxd8 {[%clk 0:02:43]} 19. Bc4 {[%clk 0:02:15.2]}
19... Bc6 {[%clk 0:02:28.1]} 20. O-O {[%clk 0:02:10.2]} 20... g6 {[%clk
0:02:17.1]} 21. h3 {[%clk 0:01:47.9]} 21... Kg7 {[%clk 0:02:12.8]} 22. Ra7
{[%clk 0:01:43.8]} 22... Rd7 {[%clk 0:02:06.6]} 23. Rxd7 {[%clk 0:01:20.8]}
23... Bxd7 {[%clk 0:02:07.5]} 24. Ra1 {[%clk 0:01:21]} 24... Rb7 {[%clk
0:01:38.1]} 25. b3 {[%clk 0:01:14.3]} 25... f5 {[%clk 0:01:27]} 26. exf5 {[%clk
0:01:11.4]} 26... Bxf5 {[%clk 0:01:10.6]} 27. b5 {[%clk 0:01:10.2]} 27... Be6
{[%clk 0:01:03.6]} 28. Ra6 {[%clk 0:01:02.1]} 28... Bxd5 {[%clk 0:01:01.2]} 29.
Bxd5 {[%clk 0:01:00.2]} 29... Rxb5 {[%clk 0:01:01.8]} 30. Rxd6 {[%clk 0:00:58]}
30... Be7 {[%clk 0:00:56.9]} 31. Rd7 {[%clk 0:00:57.1]} 31... Kf6 {[%clk
0:00:56.7]} 32. Bc4 {[%clk 0:00:56.5]} 32... Ra5 {[%clk 0:00:56.9]} 33. Rd2
{[%clk 0:00:45.6]} 33... h5 {[%clk 0:00:52.4]} 34. g3 {[%clk 0:00:45.5]} 34...
h4 {[%clk 0:00:52.1]} 35. Kg2 {[%clk 0:00:44.7]} 35... g5 {[%clk 0:00:50.1]} 36.
gxh4 {[%clk 0:00:43]} 36... gxh4 {[%clk 0:00:50]} 37. Kf3 {[%clk 0:00:43.7]}
37... Kg5 {[%clk 0:00:49.9]} 38. Rd7 {[%clk 0:00:38.5]} 38... Bc5 {[%clk
0:00:47.8]} 39. Rd5 {[%clk 0:00:36.6]} 39... Bb4 {[%clk 0:00:48]} 40. Rxa5
{[%clk 0:00:32.8]} 40... Bxa5 {[%clk 0:00:48.2]} 41. Ke4 {[%clk 0:00:33.1]}
41... Kf6 {[%clk 0:00:41.3]} 42. Kd5 {[%clk 0:00:30.2]} 42... Bc3 {[%clk
0:00:37.9]} 43. Ba6 {[%clk 0:00:20.1]} 43... Ke7 {[%clk 0:00:36.2]} 44. Bc8
{[%clk 0:00:19.7]} 44... Kd8 {[%clk 0:00:35.4]} 45. Bg4 {[%clk 0:00:19.7]} 45...
Kc7 {[%clk 0:00:35.1]} 46. Kc4 {[%clk 0:00:20.1]} 46... Be1 {[%clk 0:00:34.9]}
47. f3 {[%clk 0:00:19]} 47... Kd6 {[%clk 0:00:35.3]} 48. b4 {[%clk 0:00:19.2]}
48... Bf2 {[%clk 0:00:35.7]} 49. b5 {[%clk 0:00:19.5]} 49... Kc7 {[%clk
0:00:34.9]} 50. Kd5 {[%clk 0:00:19.3]} 50... Bg3 {[%clk 0:00:35]} 51. Ke4 {[%clk
0:00:17.7]} 51... Kb6 {[%clk 0:00:34.7]} 52. Bd7 {[%clk 0:00:17.8]} 52... Kc7
{[%clk 0:00:34.6]} 53. Bc6 {[%clk 0:00:18.2]} 53... Kb6 {[%clk 0:00:35]} 54. Kd5
{[%clk 0:00:18.3]} 54... Bh2 {[%clk 0:00:32.7]} 55. Ke6 {[%clk 0:00:16.9]} 55...
Bg3 {[%clk 0:00:32.6]} 56. Kf5 {[%clk 0:00:17.1]} 56... Kc7 {[%clk 0:00:32.8]}
57. Kg4 {[%clk 0:00:16.2]} 57... Kb6 {[%clk 0:00:32.9]} 58. Kh5 {[%clk
0:00:15.7]} 58... Kc7 {[%clk 0:00:33.1]} 59. Kg4 {[%clk 0:00:15.8]} 1/2-1/2